bitfinex-derivatives/quotes_ETHF0:USTF0_20250322
["timestamp","ask_amount","ask_price","bid_price","bid_amount"]
[1742643290193,1.00394,1992.9,1992.8,1.00399]
[1742643290387,2.33674,1992.9,1992.8,1.00399]
[1742643290593,1.3328,1992.9,1992.8,1.00399]
[1742643290895,1.3328,1992.9,1992.8,1.69139]
[1742643291088,1.3328,1992.9,1992.8,2.97809]
[1742643292095,2.33674,1992.9,1992.8,2.97809]
[1742643294501,2.33674,1992.9,1992.8,1.2867]
[1742643294696,5.54454,1992.9,1992.8,1.2867]
[1742643294892,1.00399,1992.8,1992.7,1.00402]
[1742643295093,2.96689,1992.8,1992.7,2.36624]
[1742643295493,2.96689,1992.8,1992.7,1.3622]
[1742643296196,2.96689,1992.8,1992.7,2.36624]
[1742643298596,2.96689,1992.8,1992.7,1.3622]
[1742643298899,2.96689,1992.8,1992.7,2.36624]
[1742643299690,2.30849,1992.8,1992.7,2.36624]
[1742643301699,2.30849,1992.8,1992.7,1.3622]
[1742643301898,2.30849,1992.8,1992.7,2.36624]
[1742643302800,2.30849,1992.8,1992.7,1.3622]
[1742643303395,2.30849,1992.8,1992.7,2.36624]
[1742643303904,2.30849,1992.8,1992.7,1.3622]
[1742643304200,2.30849,1992.8,1992.7,2.36624]
[1742643305399,1.3045,1992.8,1992.7,2.36624]
[1742643305603,2.30849,1992.8,1992.7,1.3622]
[1742643305903,2.30849,1992.8,1992.7,2.36624]
[1742643314717,1.3045,1992.8,1992.7,2.36624]
[1742643327511,4.81,1993.1,1993.0,1.00389]
[1742643327711,1.65294,1993.1,1993.0,1.00389]
[1742643328418,1.65294,1993.1,1993.0,1.70289]
[1742643328816,3.03744,1993.1,1993.0,3.03579]
[1742643332922,2.0336,1993.1,1993.0,3.03579]
[1742643333213,1.3845,1993.1,1993.0,9.43059]
[1742643333418,1.35511691,1993.2,1993.1,1.00384]
[1742643333620,1.35511691,1993.2,1993.1,2.41154]
[1742643334221,2.35890691,1993.2,1993.1,2.41154]
[1742643334422,1.35511691,1993.2,1993.1,2.41154]
[1742643335426,2.35890691,1993.2,1993.1,2.41154]
[1742643335618,3.04780691,1993.2,1993.1,1.00384]
[1742643335819,3.04780691,1993.2,1993.1,2.35994]
[1742643338319,2.04401691,1993.2,1993.1,2.35994]
[1742643338819,3.04780691,1993.2,1993.1,2.35994]
[1742643344321,1.35511691,1993.2,1993.1,2.35994]
[1742643345330,2.35890691,1993.2,1993.1,2.35994]
[1742643354830,2.35890691,1993.2,1993.1,1.3561]
[1742643355036,1.00384,1993.1,1993.0,4.19085]
[1742643355239,1.00389,1993.0,1992.9,6.30253]
[1742643355630,2.35419,1993.0,1992.9,6.30253]
[1742643360339,2.35419,1993.0,1992.9,4.19093]
[1742643360543,2.35419,1993.0,1992.9,5.50063]
[1742643362047,1.00394,1992.9,1992.8,4.86927]
[1742643362236,3.04364,1992.9,1992.8,4.86927]
[1742643363538,3.04364,1992.9,1992.8,6.24687]
[1742643367639,3.04364,1992.9,1992.8,5.56857]
[1742643367943,1.00399,1992.8,1992.7,1.00402]
[1742643368234,1.00404,1992.7,1992.6,2.98995]
[1742643368437,1.64654,1992.7,1992.6,3.884]
[1742643368632,2.96334,1992.7,1992.6,3.187]
[1742643370741,1.00409,1992.6,1992.5,1.66251691]
[1742643370930,2.34259,1992.6,1992.5,1.66251691]
[1742643372038,2.34259,1992.6,1992.5,2.34891691]
[1742643374139,2.34259,1992.6,1992.5,0.00751691]
[1742643379739,1.3385,1992.6,1992.5,1.68985691]
[1742643379943,2.34259,1992.6,1992.5,1.68985691]
[1742643384942,2.34259,1992.6,1992.5,3.06725691]
[1742643387547,2.34259,1992.6,1992.5,1.38491691]
[1742643391148,2.34259,1992.6,1992.5,0.00751691]
[1742643396654,2.34259,1992.6,1992.5,1.39761691]
[1742643398548,2.34259,1992.6,1992.5,0.00751691]
[1742643399565,5.55039,1992.6,1992.5,0.00751691]
[1742643403854,8.73739,1992.6,1992.5,0.00751691]
[1742643404252,9.56498237,1992.6,1992.5,0.00751691]
[1742643404453,8.73739,1992.6,1992.5,0.00751691]
[1742643405157,12.89829,1992.6,1992.5,0.00751691]
[1742643408758,12.89829,1992.6,1992.5,1.28811691]
[1742643408958,12.89829,1992.6,1992.5,1.96761691]
[1742643410460,9.69049,1992.6,1992.5,1.96761691]
[1742643410666,12.89829,1992.6,1992.5,1.96761691]
[1742643411060,8.73739,1992.6,1992.5,1.96761691]
[1742643411760,8.73739,1992.6,1992.5,1.28811691]
[1742643411967,8.73739,1992.6,1992.5,0.00751691]
[1742643414063,9.56494997,1992.6,1992.5,0.00751691]
[1742643414270,1.00419,1992.4,1992.3,1.33635489]
[1742643414455,2.51068,1992.3,1992.0,1.00438]
[1742643414659,1.00439,1992.0,1991.9,4.1914]
[1742643414966,1.00439,1992.0,1991.9,1.0044]
[1742643415558,1.00439,1992.0,1991.9,2.2857]
[1742643415760,2.30849,1992.0,1991.9,2.2857]
[1742643417569,2.30849,1992.0,1991.9,3.6443]
[1742643419066,2.30849,1992.0,1991.9,3.64434]
[1742643419263,2.30849,1992.0,1991.9,2.6399]
[1742643422174,2.95629,1992.0,1991.9,2.6399]
[1742643422467,1.00444,1991.9,1991.8,0.00751691]
[1742643422672,5.48744,1991.9,1991.8,1.37581691]
[1742643426366,5.48744,1991.9,1991.8,0.00751691]
[1742643426668,6.17874,1991.9,1991.8,0.00751691]
[1742643427673,6.17874,1991.9,1991.8,1.30431691]
[1742643428265,6.17874,1991.9,1991.8,0.00751691]
[1742643428678,7.00442935,1991.9,1991.8,0.00751691]
[1742643429173,6.58975134,1991.9,1991.8,0.00751691]
[1742643429578,6.17874,1991.9,1991.8,0.00751691]
[1742643431678,13.52664,1991.9,1991.8,0.00751691]
[1742643431878,13.52664,1991.9,1991.8,1.34991691]
[1742643434482,13.52664,1991.9,1991.8,0.00751691]
[1742643440789,16.02664,1991.9,1991.8,0.00751691]
[1742643440988,13.52664,1991.9,1991.8,0.00751691]
[1742643443487,14.3521027,1991.9,1991.8,0.00751691]
[1742643447290,14.35252724,1991.9,1991.8,0.00751691]
[1742643447494,14.35269873,1991.9,1991.8,0.00751691]
[1742643447693,14.35269873,1991.9,1991.8,1.39321691]
[1742643450300,15.26088217,1991.9,1991.8,1.39321691]
[1742643450606,11.38258217,1991.9,1991.8,1.39321691]
[1742643450896,5.12042344,1991.9,1991.8,1.39321691]
[1742643451101,5.12042344,1991.9,1991.8,2.39770691]
[1742643451300,3.2078,1991.9,1991.8,2.39770691]
[1742643451493,7.3479,1992.0,1991.8,1.39321691]
[1742643451494,1.0044,1992.0,1991.8,1.39321691]
[1742643451692,1.0044,1992.0,1991.9,2.3295]
[1742643452402,3.21531691,1992.1,1991.9,1.3251]
[1742643452603,1.00439,1992.0,1991.9,1.0044]
[1742643454395,1.01189691,1992.1,1991.9,1.0044]
[1742643455004,1.01189691,1992.1,1992.0,1.00439]
[1742643456404,0.00751691,1992.1,1992.0,1.00439]
[1742643458609,0.00751691,1992.1,1992.0,4.19139]
[1742643465311,0.00751691,1992.1,1992.0,5.52979]
[1742643467312,0.00751691,1992.1,1992.0,6.16589]
[1742643470311,1.3742,1992.4,1992.3,1.00424]
[1742643470708,2.37842,1992.4,1992.3,1.00424]
[1742643470909,4.21198,1992.5,1992.4,1.00419]
[1742643471110,3.2078,1992.5,1992.4,1.00419]
[1742643471510,1.38361691,1992.6,1992.5,1.00414]
[1742643471705,0.00751691,1992.6,1992.5,1.65454]
[1742643471908,0.00751691,1992.6,1992.5,3.03804]
[1742643473313,1.28311691,1992.6,1992.5,3.03804]
[1742643475514,0.00751691,1992.6,1992.5,3.03804]
[1742643476713,1.29921691,1992.6,1992.5,3.03804]
[1742643481316,2.30330691,1992.6,1992.5,3.03804]
[1742643481512,1.00416,1992.5,1992.4,3.185]
[1742643481718,2.27996,1992.5,1992.4,4.4842]
[1742643481905,2.93876,1992.5,1992.4,4.4842]
[1742643482513,1.00423,1992.4,1992.3,1.00423]
[1742643482818,1.4072,1992.4,1992.3,2.35553]
[1742643483220,1.4072,1992.4,1992.3,3.04323]
[1742643485214,2.41139,1992.4,1992.3,3.04323]
[1742643485623,1.4072,1992.4,1992.3,3.04323]
[1742643489928,2.41139,1992.4,1992.3,3.04323]
[1742643494622,1.4072,1992.4,1992.1,1.3357]
[1742643494823,2.96309,1992.3,1992.2,4.18928]
[1742643495331,2.96309,1992.3,1992.2,3.185]
[1742643495532,2.96309,1992.3,1992.2,4.18929]
[1742643496330,1.9588,1992.3,1992.2,4.18929]
[1742643496527,1.3174,1992.3,1992.2,4.18929]
[1742643496727,1.3174,1992.3,1992.2,5.52789]
[1742643500734,1.3174,1992.3,1992.2,6.91319]
[1742643502835,1.3174,1992.3,1992.2,6.26209]
[1742643503037,2.0208,1992.3,1992.2,6.26209]
[1742643503340,3.02504,1992.3,1992.2,4.18929]
[1742643504223,3.02504,1992.3,1992.2,3.185]
[1742643504932,3.02504,1992.3,1992.2,4.18929]
[1742643505433,1.00429,1992.2,1992.1,3.185]
[1742643505736,2.99249,1992.2,1992.1,3.185]
[1742643506139,1.00434,1992.1,1992.0,1.00436]
[1742643506337,2.29484,1992.1,1992.0,1.00436]
[1742643506730,2.29484,1992.1,1992.0,2.34016]
[1742643509541,1.2905,1992.1,1992.0,2.34016]
[1742643511733,1.2905,1992.1,1992.0,3.00636]
[1742643513846,3.9112,1992.3,1992.2,1.00429]
[1742643514037,4.4822,1992.3,1992.2,1.00429]
[1742643514545,4.4822,1992.3,1992.2,2.30979]
[1742643515345,1.2744,1992.3,1992.2,2.30979]
[1742643520049,2.27864,1992.3,1992.2,2.30979]
[1742643520445,1.00429,1992.2,1992.1,1.6934]
[1742643520650,3.07909,1992.2,1992.1,1.0043]
[1742643520852,3.73419,1992.2,1992.1,1.0043]
[1742643521449,3.73419,1992.2,1992.0,5.1841]
[1742643521450,1.00434,1992.1,1992.0,4.18937]
[1742643521641,2.37444,1992.1,1992.0,4.18937]
[1742643524242,2.37444,1992.1,1992.0,1.00437]
[1742643528657,1.00444,1992.0,1991.9,1.00442]
[1742643528863,2.33924,1992.0,1991.9,1.00442]
[1742643529365,2.33924,1992.0,1991.9,2.34052]
[1742643532873,1.00444,1991.9,1991.8,1.01197691]
[1742643533056,2.95974,1991.9,1991.8,2.29467691]
[1742643533366,2.95974,1991.9,1991.8,1.29021691]
[1742643533766,3.62514,1991.9,1991.8,1.29021691]
[1742643535357,3.62514,1991.9,1991.8,2.29470691]
[1742643535558,3.62514,1991.9,1991.8,0.00751691]
[1742643539671,3.62514,1991.9,1991.8,2.41300691]
[1742643539861,3.62514,1991.9,1991.8,1.40851691]
[1742643540176,3.62514,1991.9,1991.8,2.41300691]
[1742643540961,3.62514,1991.9,1991.8,1.40851691]
[1742643541160,3.62514,1991.9,1991.8,0.00751691]
[1742643543269,6.83294,1991.9,1991.8,0.00751691]
[1742643544070,3.62514,1991.9,1991.8,0.00751691]
[1742643544370,6.83294,1991.9,1991.8,0.00751691]
[1742643545670,5.52494,1991.9,1991.8,2.34940691]
[1742643548462,4.5205,1991.9,1991.8,2.34940691]
[1742643548662,5.52494,1991.9,1991.8,2.34940691]
[1742643549971,2.31714,1991.9,1991.8,2.34940691]
[1742643554673,4.89408,1992.1,1992.0,1.00439]
[1742643554880,3.8897,1992.1,1991.9,2.6193]
[1742643555179,1.00439,1992.0,1991.9,2.35361]
[1742643555980,2.38519,1992.0,1991.9,3.69351]
[1742643556876,2.38519,1992.0,1991.9,2.6891]
[1742643558985,2.38519,1992.0,1991.9,3.69354]
[1742643559177,2.39553089,1992.0,1991.9,3.69354]
[1742643559378,2.39553089,1992.0,1991.9,2.6891]
[1742643563791,1.00444,1991.9,1991.8,0.00751691]
[1742643564085,6.39872675,1991.9,1991.8,0.00751691]
[1742643564275,7.32056283,1991.9,1991.8,0.00751691]
[1742643565189,1.00464,1991.5,1991.4,5.55256]
[1742643565380,1.00464,1991.5,1991.4,1.3629]
[1742643565682,1.00464,1991.5,1991.4,0.6656]
[1742643566274,1.01498089,1991.5,1991.4,0.6656]
[1742643566477,1.01498089,1991.5,1991.4,2.0735]
[1742643566880,1.68888089,1991.5,1991.4,2.0735]
[1742643567483,1.68888089,1991.5,1991.4,3.0782]
[1742643569589,1.68888089,1991.5,1991.4,2.0735]
[1742643571485,0.01034089,1991.5,1991.4,3.0782]
[1742643572393,1.01498089,1991.5,1991.4,2.0735]
[1742643574390,1.0047,1991.4,1991.3,0.00751691]
[1742643574591,2.9861,1991.4,1991.3,1.34781691]
[1742643575486,2.99644089,1991.4,1991.3,1.34781691]
[1742643584002,0.01034089,1991.4,1991.3,2.35256691]
[1742643584402,1.28914089,1991.4,1991.3,2.35256691]
[1742643586198,0.01034089,1991.4,1991.3,2.35256691]
[1742643587008,1.34814089,1991.4,1991.3,2.35256691]
[1742643587206,2.35284089,1991.4,1991.3,2.35256691]
[1742643587608,1.34814089,1991.4,1991.3,2.35256691]
[1742643589110,2.35284089,1991.4,1991.3,2.35256691]
[1742643589505,2.35284089,1991.4,1991.3,1.34781691]
[1742643591217,2.35284089,1991.4,1991.3,0.00751691]
[1742643592223,2.35284089,1991.4,1991.3,1.34071691]
[1742643593222,2.51238,1990.9,1990.2,3.2078]
[1742643593427,1.0052,1990.4,1990.3,2.6934]
[1742643593929,2.31848,1990.5,1990.4,1.0052]
[1742643594227,2.31848,1990.5,1990.4,2.3384]
[1742643594623,2.32882089,1990.5,1990.4,1.3332]
[1742643594830,1.0052,1990.4,1990.3,0.00507613]
[1742643595020,2.3185,1990.4,1990.3,0.69717613]
[1742643595526,2.32884089,1990.4,1990.3,1.70242613]
[1742643595731,2.32884089,1990.4,1990.3,0.69717613]
[1742643596231,2.32884089,1990.4,1990.3,1.99747613]
[1742643597427,2.32884089,1990.4,1990.3,3.00272613]
[1742643597929,1.32364089,1990.4,1990.3,3.00272613]
[1742643598126,0.01034089,1990.4,1990.3,3.00272613]
[1742643599434,1.01554089,1990.4,1990.3,3.00272613]
[1742643600234,0.01034089,1990.4,1990.3,3.00272613]
[1742643600735,1.01554089,1990.4,1990.3,3.00272613]
[1742643601437,1.01554089,1990.4,1990.3,1.99747613]
[1742643602835,2.30794089,1990.4,1990.3,0.00507613]
[1742643603036,2.30794089,1990.4,1989.6,3.9055]
[1742643603037,2.51313,1990.3,1989.6,3.9055]
[1742643603232,1.00539,1990.1,1990.0,3.67838]
[1742643603627,1.01573089,1990.1,1990.0,3.67838]
[1742643603829,1.01573089,1990.1,1990.0,2.673]
[1742643604030,0.01034089,1990.1,1990.0,3.6784]
[1742643604230,1.01569089,1990.1,1990.0,3.6784]
[1742643606038,0.01034089,1990.1,1990.0,3.6784]
[1742643607038,0.00753636,1990.2,1990.1,1.00535]
[1742643607233,0.00753636,1990.2,1990.1,2.36625]
[1742643608035,0.00753636,1990.2,1990.1,5.57405]
[1742643608738,0.00753636,1990.2,1990.1,2.36625]
[1742643609436,1.01283636,1990.2,1990.1,1.3609]
[1742643609732,1.00535,1990.1,1990.0,4.5915]
[1742643609940,1.65635,1990.1,1990.0,3.8938]
[1742643610440,1.65635,1990.1,1990.0,5.222]
[1742643610838,1.65635,1990.1,1990.0,6.2274]
[1742643611340,1.65635,1990.1,1990.0,5.222]
[1742643611534,1.00535,1990.1,1990.0,5.9176]
[1742643611741,2.33438636,1990.2,1990.1,1.00535]
[1742643611934,2.33438636,1990.2,1990.1,1.3282]
[1742643612433,2.33438636,1990.2,1990.1,2.33355]
[1742643615341,1.0054,1990.1,1989.9,3.2078]
[1742643615549,2.35305,1990.1,1990.0,4.2364]
[1742643615739,2.35305,1990.1,1990.0,6.8818]
[1742643616443,1.3477,1990.1,1990.0,6.8818]
[1742643620142,1.01286636,1990.2,1990.1,1.00535]
[1742643620342,2.39256636,1990.2,1990.1,2.30195]
[1742643621548,1.38723636,1990.2,1990.1,2.30195]
[1742643621750,1.38723636,1990.2,1990.1,5.50975]
[1742643623848,1.38723636,1990.2,1990.1,2.30195]
[1742643627949,0.00753636,1990.2,1990.1,2.30195]
[1742643630657,3.2078,1990.7,1990.6,1.0051]
[1742643630963,2.32677,1990.9,1990.8,1.005]
[1742643631259,0.6646,1990.9,1990.8,1.005]
[1742643631659,1.66955,1990.9,1990.8,1.6868]
[1742643631861,0.6646,1990.9,1990.8,1.6868]
[1742643632048,1.34963636,1991.0,1990.9,1.00495]
[1742643632252,2.35453636,1991.0,1990.9,5.62595]
[1742643632461,2.35453636,1991.0,1990.9,4.621]
[1742643633157,2.35453636,1991.0,1990.9,5.62595]
[1742643633560,0.00753636,1991.0,1990.9,5.62595]
[1742643634056,1.34963636,1991.0,1990.9,5.62595]
[1742643639255,2.35453636,1991.0,1990.9,1.398]
[1742643639565,3.00993636,1991.0,1990.9,3.217]
[1742643639762,1.00503,1990.8,1990.6,1.3477]
[1742643639957,1.0051,1990.6,1990.5,5.872]
[1742643640371,4.2129,1990.6,1990.5,5.872]
[1742643640566,5.5634,1990.6,1990.5,5.872]
[1742643642968,5.5634,1990.6,1990.4,4.22619]
[1742643642969,1.00515,1990.5,1990.4,3.221]
[1742643643169,2.98925,1990.5,1990.4,3.221]
[1742643645367,1.9841,1990.5,1990.2,1.4047]
[1742643645672,1.0053,1990.2,1990.1,0.6549]
[1742643645972,1.0053,1990.2,1990.1,5.2529]
[1742643646272,1.0053,1990.2,1990.1,4.598]
[1742643646675,1.0053,1990.2,1990.1,3.219]
[1742643647176,1.0053,1990.2,1990.1,4.22435]
[1742643652574,1.0053,1990.2,1990.1,3.219]
[1742643653375,1.0053,1990.2,1990.1,5.54485]
[1742643653575,1.0053,1990.2,1990.1,4.5395]
[1742643654073,1.0053,1990.2,1990.1,3.219]
[1742643655176,1.0053,1990.2,1990.1,4.22435]
[1742643655378,1.0053,1990.2,1990.1,5.54485]
[1742643655673,1.0053,1990.2,1990.1,4.5395]
[1742643656473,1.00535,1990.1,1990.0,4.22589636]
[1742643656667,3.05545,1990.1,1990.0,5.52739636]
[1742643658467,2.0501,1990.1,1990.0,5.52739636]
[1742643658671,3.05545,1990.1,1990.0,4.52203636]
[1742643659069,3.05545,1990.1,1990.0,5.52743636]
[1742643660269,2.0501,1990.1,1990.0,2.31443636]
[1742643660577,2.40815,1990.1,1990.0,2.31443636]
[1742643661480,1.4028,1990.1,1990.0,2.31443636]
[1742643661882,2.40815,1990.1,1990.0,1.30903636]
[1742643663182,2.40815,1990.1,1990.0,0.00753636]
[1742643663381,3.04485,1990.1,1990.0,0.00753636]
[1742643663782,1.00554,1989.8,1989.6,3.2078]
[1742643663969,1.00554,1989.8,1989.7,2.40925]
[1742643664174,1.00549,1989.9,1989.7,2.40925]
[1742643664375,1.00549,1989.9,1989.8,2.4092]
[1742643664576,1.00549,1989.9,1989.8,2.40917]
[1742643664577,1.00545,1989.9,1989.8,2.40917]
[1742643665184,3.85043636,1990.0,1989.3,2.51437]
[1742643665483,1.00551,1989.8,1989.6,1.4037]
[1742643665680,1.00548,1989.9,1989.7,1.00552]
[1742643665885,0.00753636,1990.0,1989.9,1.00545]
[1742643666277,0.00753636,1990.0,1989.9,5.53835]
[1742643668385,1.65943,1990.4,1990.0,2.51347]
[1742643668587,1.65943,1990.4,1990.2,1.00526]
[1742643668782,1.65943,1990.4,1990.3,3.01485]
[1742643668978,3.2078,1990.5,1990.4,1.0052]
[1742643669186,4.856,1990.9,1990.4,5.2164]
[1742643669386,1.00501,1990.8,1990.7,1.00503]
[1742643669591,1.01254636,1990.8,1990.7,1.00503]
[1742643669891,1.0051,1990.6,1990.5,3.23653636]
[1742643670086,1.0051,1990.6,1990.5,0.00753636]
[1742643670595,1.7002,1990.6,1990.5,0.00753636]
[1742643674878,3.0295,1990.6,1990.5,0.00753636]
[1742643676185,2.0244,1990.6,1990.5,1.01268636]
[1742643676385,1.3293,1990.6,1990.5,4.24368636]
[1742643676588,1.3293,1990.6,1990.5,5.59208636]
[1742643676890,2.3344,1990.6,1990.5,5.59208636]
[1742643677090,1.3293,1990.6,1990.5,5.59208636]
[1742643687201,1.01255636,1990.8,1990.7,1.00505]
[1742643687202,0.00753636,1990.8,1990.7,1.00505]
[1742643687398,1.40093636,1990.8,1990.7,4.22805]
[1742643687703,1.40093636,1990.8,1990.7,5.56655]
[1742643687905,1.40093636,1990.8,1990.7,6.24695]
[1742643689103,0.00753636,1990.8,1990.7,6.24695]
[1742643690003,0.00753636,1990.8,1990.7,9.45475]
[1742643690198,0.00753636,1990.8,1990.7,6.24695]
[1742643691007,0.00753636,1990.8,1990.7,9.45475]
[1742643691499,0.00753636,1990.8,1990.7,6.24695]
[1742643692803,0.00753636,1990.8,1990.7,3.02395]
[1742643693011,0.68033636,1990.8,1990.7,1.00505]
[1742643693205,1.00505,1990.7,1990.6,4.91637]
[1742643693407,1.3038,1990.7,1990.6,4.91637]
[1742643693798,2.30885,1990.7,1990.6,6.31547]
[1742643694109,1.3038,1990.7,1990.6,6.31547]
[1742643695612,0.00753636,1990.8,1990.7,1.00505]
[1742643695814,0.00753636,1990.8,1990.7,2.40415]
[1742643697416,1.34593636,1990.8,1990.7,2.40415]
[1742643699412,0.00753636,1990.8,1990.7,2.40415]
[1742643700017,1.01253636,1990.8,1990.7,2.40415]
[1742643700410,1.00505,1990.7,1990.6,3.231]
[1742643700617,6.87305,1990.7,1990.6,4.23606]
[1742643700813,3.66525,1990.7,1990.6,4.23606]
[1742643701605,6.87305,1990.7,1990.6,4.23606]
[1742643701806,2.6602,1990.7,1990.6,4.23606]
[1742643702007,2.6602,1990.7,1990.6,5.56146]
[1742643703619,3.2078,1991.2,1991.1,1.00485]
[1742643703921,1.00482,1991.2,1991.1,1.00483]
[1742643704514,2.33048,1991.3,1991.2,1.0048]
[1742643705015,3.65718,1991.3,1991.2,1.0048]
[1742643707117,2.6524,1991.3,1991.2,1.0048]
[1742643707313,3.65715,1991.3,1991.2,1.0048]
[1742643707717,2.6524,1991.3,1991.2,1.0048]
[1742643708121,3.65715,1991.3,1991.2,1.0048]
[1742643709425,1.00483,1991.2,1991.1,1.00481]
[1742643709621,5.54943,1991.2,1991.1,1.00481]
[1742643710124,1.00485,1991.1,1991.0,1.00486]
[1742643710325,2.34165,1991.1,1991.0,4.23886]
[1742643710924,1.00493,1991.0,1990.9,1.00491]
[1742643711123,3.69453,1991.0,1990.9,1.00491]
[1742643713124,3.69453,1991.0,1990.8,4.23895]
[1742643713125,1.00495,1990.9,1990.8,4.23895]
[1742643713327,2.33365,1990.9,1990.8,4.23895]
[1742643714737,1.3287,1990.9,1990.8,4.23895]
[1742643714929,1.3287,1990.9,1990.8,5.53235]
[1742643716416,2.33365,1990.9,1990.8,5.53235]
[1742643717034,4.1609,1991.2,1991.1,1.00485]
[1742643717328,4.1609,1991.2,1991.1,4.23985]
[1742643718322,5.5675,1991.2,1991.1,5.59425]
[1742643719130,1.4066,1991.2,1991.1,5.59425]
[1742643719426,4.22003636,1991.4,1991.3,1.00475]
[1742643719629,4.22003636,1991.4,1991.3,4.24075]
[1742643719837,3.21533636,1991.4,1991.3,4.24075]
[1742643720024,4.62193636,1991.4,1991.3,4.24075]
[1742643720333,5.62663636,1991.4,1991.3,4.24075]
[1742643720633,4.62193636,1991.4,1991.3,4.24075]
[1742643722824,1.41413636,1991.4,1991.3,4.24075]
[1742643723220,1.41413636,1991.4,1991.3,4.89595]
[1742643725027,0.00753636,1991.4,1991.3,4.89595]
[1742643726440,2.06433636,1991.4,1991.3,4.89595]
[1742643726629,2.06433636,1991.4,1991.3,4.24075]
[1742643728636,1.40483636,1991.4,1991.3,4.24075]
[1742643729840,2.40953636,1991.4,1991.3,4.24075]
[1742643732442,1.40483636,1991.4,1991.3,4.24075]
[1742643734743,0.00753636,1991.4,1991.3,4.24075]
[1742643737039,3.2078,1991.6,1991.3,4.24075]
[1742643737040,3.2078,1991.6,1991.5,1.00464]
[1742643737250,3.2078,1991.6,1991.5,4.23064]
[1742643737638,3.2078,1991.6,1991.5,5.61354]
[1742643738549,1.30793636,1991.7,1991.6,1.00459]
[1742643738742,4.51573636,1991.7,1991.6,2.29789]
[1742643740151,5.52027636,1991.7,1991.6,2.29789]
[1742643740546,2.31247636,1991.7,1991.6,2.29789]
[1742643740742,4.51573636,1991.7,1991.5,3.8786]
[1742643740946,1.9774,1991.6,1991.5,6.17654]
[1742643742152,2.98199,1991.6,1991.5,6.17654]
[1742643742844,1.9774,1991.6,1991.5,6.17654]
[1742643743047,1.3378,1991.6,1991.5,6.17654]
[1742643744549,2.34239,1991.6,1991.5,6.17654]
[1742643744853,1.3378,1991.6,1991.5,6.17654]
[1742643745050,2.34239,1991.6,1991.5,6.17654]
[1742643745552,2.34239,1991.6,1991.5,5.52394]
[1742643745853,2.99999,1991.6,1991.5,5.52394]
[1742643746552,2.99999,1991.6,1991.5,5.51994]
[1742643747551,1.3378,1991.6,1991.5,5.51994]
[1742643750748,1.3378,1991.6,1991.5,6.18294]
[1742643753653,0.00753636,1991.7,1991.6,1.00459]
[1742643753849,0.00753636,1991.7,1991.6,2.30619]
[1742643762370,0.00753636,1991.7,1991.6,5.51399]
[1742643763061,0.00753636,1991.7,1991.6,5.51619]
[1742643763267,1.67987636,1991.7,1991.6,5.51619]
[1742643763468,2.35337636,1991.7,1991.6,5.51619]
[1742643763665,2.70243636,1991.7,1991.6,5.51619]
[1742643765267,3.70697636,1991.7,1991.6,5.51619]
[1742643765569,2.70243636,1991.7,1991.6,5.51619]
[1742643769570,2.02893636,1991.7,1991.6,5.51619]
[1742643769875,1.36113636,1991.7,1991.6,5.51619]
[1742643772668,2.36567636,1991.7,1991.6,5.51619]
[1742643772868,1.36113636,1991.7,1991.6,5.51619]
[1742643774066,1.36113636,1991.7,1991.6,4.20759]
[1742643774267,1.36113636,1991.7,1991.6,5.56749]
[1742643774761,2.36567636,1991.7,1991.6,5.56749]
[1742643775069,1.36113636,1991.7,1991.6,5.56749]
[1742643780974,2.36567636,1991.7,1991.6,1.00459]
[1742643781272,2.36567636,1991.7,1991.5,0.663]
[1742643781273,1.00462,1991.6,1991.5,4.20561]
[1742643781479,3.64832,1991.6,1991.5,4.20561]
[1742643781768,3.64832,1991.6,1991.5,3.201]
[1742643782367,3.64832,1991.6,1991.5,4.20564]
[1742643783179,1.9657,1991.6,1991.5,4.20564]
[1742643783376,1.9657,1991.6,1991.5,5.53224]
[1742643784781,1.269,1991.6,1991.5,5.53224]
[1742643785475,1.269,1991.6,1991.5,6.91454]
[1742643786370,0.00753636,1991.7,1991.6,1.00459]
[1742643786565,1.36523636,1991.7,1991.6,2.38689]
[1742643794187,1.36523636,1991.7,1991.6,4.20059]
[1742643800988,2.36977636,1991.7,1991.6,1.00459]
[1742643801187,1.00459,1991.6,1991.5,4.19861]
[1742643801488,3.02769,1991.6,1991.5,4.19861]
[1742643801884,1.3632,1991.6,1991.5,4.19861]
[1742643802085,1.3632,1991.6,1991.5,5.49771]
[1742643802389,1.37073636,1991.7,1991.6,1.00459]
[1742643802588,1.37073636,1991.7,1991.6,2.29079]
[1742643804594,4.1609,1992.0,1991.9,1.00444]
[1742643804790,1.3982,1991.9,1991.8,1.00449]
[1742643804989,1.3982,1991.9,1991.8,5.48869]
[1742643809794,0.00753636,1992.0,1991.9,1.00444]
[1742643809990,0.00753636,1992.0,1991.9,2.36544]
[1742643815994,1.70002636,1992.0,1991.9,5.55944]
[1742643816495,2.96872636,1992.0,1991.9,5.55944]
[1742643834408,2.96872636,1992.0,1991.9,4.555]
[1742643834611,2.96872636,1992.0,1991.9,5.55944]
[1742643835411,2.96872636,1992.0,1991.9,4.555]
[1742643837219,2.96872636,1992.0,1991.9,5.55944]
[1742643842518,1.00449,1991.8,1991.7,1.33283636]
[1742643842706,1.00449,1991.8,1991.7,0.00753636]
[1742643843021,4.21229,1991.8,1991.7,3.19553636]
[1742643843215,5.51459,1991.8,1991.7,4.55263636]
[1742643843606,5.51459,1991.8,1991.7,5.55717636]
[1742643843818,2.30679,1991.8,1991.7,5.55717636]
[1742643844118,5.51459,1991.8,1991.7,5.55717636]
[1742643844321,5.51459,1991.8,1991.7,4.55263636]
[1742643844518,5.51459,1991.8,1991.7,3.19553636]
[1742643844711,5.51459,1991.8,1991.7,0.00753636]
[1742643850615,5.51459,1991.8,1991.7,0.70353636]
[1742643850820,4.5101,1991.8,1991.7,1.70807636]
[1742643851221,4.5101,1991.8,1991.7,3.08287636]